[Event "Live Chess"]
[Site "Chess.com"]
[Date "2010.12.15"]
[Round "-"]
[White "hipposcottimus"]
[Black "Snart"]
[Result "1-0"]
[CurrentPosition "2r2rk1/3n2p1/2p4p/3P1p2/7R/2P5/P3NPPP/3Q1RK1 b - -"]
[Timezone "UTC"]
[ECO "B01"]
[ECOUrl "https://www.chess.com/openings/Scandinavian-Defense-Modern-Icelandic-Palme-Gambit"]
[UTCDate "2010.12.15"]
[UTCTime "23:39:52"]
[WhiteElo "1618"]
[BlackElo "1462"]
[TimeControl "60"]
[Termination "hipposcottimus won on time"]
[StartTime "23:39:52"]
[EndDate "2010.12.15"]
[EndTime "23:41:21"]
[Link "https://www.chess.com/game/live/77697237"]

1. e4 {[%clk 0:01:00]} 1... d5 {[%clk 0:01:00]} 2. exd5 {[%clk 0:00:58.6]} 2... Nf6 {[%clk 0:00:58.7]} 3. c4 {[%clk 0:00:56.6]} 3... e6 {[%clk 0:00:57.6]} 4. Nc3 {[%clk 0:00:53.5]} 4... exd5 {[%clk 0:00:56.3]} 5. cxd5 {[%clk 0:00:53.2]} 5... Nxd5 {[%clk 0:00:55.5]} 6. d3 {[%clk 0:00:52.8]} 6... Nxc3 {[%clk 0:00:54.3]} 7. bxc3 {[%clk 0:00:52.5]} 7... Bd6 {[%clk 0:00:53.2]} 8. Nf3 {[%clk 0:00:51.1]} 8... Bg4 {[%clk 0:00:51.8]} 9. Be3 {[%clk 0:00:50.1]} 9... O-O {[%clk 0:00:49.8]} 10. Be2 {[%clk 0:00:48.7]} 10... c6 {[%clk 0:00:46.9]} 11. Nd4 {[%clk 0:00:47]} 11... Bxe2 {[%clk 0:00:42.9]} 12. Nxe2 {[%clk 0:00:46.7]} 12... Nd7 {[%clk 0:00:41.1]} 13. d4 {[%clk 0:00:46.3]} 13... Rc8 {[%clk 0:00:36.4]} 14. O-O {[%clk 0:00:46]} 14... Nf6 {[%clk 0:00:35.5]} 15. Rb1 {[%clk 0:00:45.7]} 15... Bb8 {[%clk 0:00:34.5]} 16. Rxb7 {[%clk 0:00:43.1]} 16... h6 {[%clk 0:00:30]} 17. Bf4 {[%clk 0:00:42.2]} 17... Nd7 {[%clk 0:00:22.2]} 18. Bxb8 {[%clk 0:00:38.8]} 18... Nxb8 {[%clk 0:00:18.5]} 19. Rxa7 {[%clk 0:00:38.1]} 19... Qh4 {[%clk 0:00:14.2]} 20. Ra4 {[%clk 0:00:37.5]} 20... Nd7 {[%clk 0:00:10.3]} 21. d5 {[%clk 0:00:36.6]} 21... f5 {[%clk 0:00:08.2]} 22. Rxh4 {[%clk 0:00:34.1]} 1-0

[Event "Live Chess"]
[Site "Chess.com"]
[Date "2010.12.15"]
[Round "-"]
[White "lipton131313"]
[Black "hipposcottimus"]
[Result "1-0"]
[CurrentPosition "8/pp6/b5pk/6rp/1B5K/PR1n1P1P/6P1/3R4 b - -"]
[Timezone "UTC"]
[ECO "D00"]
[ECOUrl "https://www.chess.com/openings/Queens-Pawn-Opening-1...d5-2.e3"]
[UTCDate "2010.12.15"]
[UTCTime "23:36:54"]
[WhiteElo "1831"]
[BlackElo "1618"]
[TimeControl "60"]
[Termination "lipton131313 won on time"]
[StartTime "23:36:54"]
[EndDate "2010.12.15"]
[EndTime "23:39:08"]
[Link "https://www.chess.com/game/live/77696577"]

1. d4 {[%clk 0:01:00]} 1... d5 {[%clk 0:01:00]} 2. e3 {[%clk 0:01:00]} 2... c6 {[%clk 0:00:59.7]} 3. f3 {[%clk 0:01:00]} 3... Bf5 {[%clk 0:00:58.9]} 4. c3 {[%clk 0:01:00]} 4... Nd7 {[%clk 0:00:57.2]} 5. a3 {[%clk 0:01:00]} 5... c5 {[%clk 0:00:56.4]} 6. c4 {[%clk 0:01:00]} 6... e6 {[%clk 0:00:53.3]} 7. cxd5 {[%clk 0:00:57.1]} 7... exd5 {[%clk 0:00:53]} 8. Nc3 {[%clk 0:00:55.4]} 8... Ngf6 {[%clk 0:00:52.3]} 9. Bb5 {[%clk 0:00:53.1]} 9... Be7 {[%clk 0:00:49.4]} 10. Bxd7+ {[%clk 0:00:50.3]} 10... Qxd7 {[%clk 0:00:49.1]} 11. dxc5 {[%clk 0:00:49.1]} 11... Bxc5 {[%clk 0:00:47.6]} 12. b4 {[%clk 0:00:48.2]} 12... d4 {[%clk 0:00:41.1]} 13. bxc5 {[%clk 0:00:44.9]} 13... dxc3 {[%clk 0:00:40]} 14. Qxd7+ {[%clk 0:00:44.5]} 14... Nxd7 {[%clk 0:00:39.3]} 15. Ne2 {[%clk 0:00:43.5]} 15... Nxc5 {[%clk 0:00:38.3]} 16. e4 {[%clk 0:00:42.3]} 16... Nd3+ {[%clk 0:00:37.2]} 17. Kf1 {[%clk 0:00:40]} 17... Be6 {[%clk 0:00:32.5]} 18. Nxc3 {[%clk 0:00:38.4]} 18... Bc4 {[%clk 0:00:31.1]} 19. Kg1 {[%clk 0:00:37]} 19... O-O {[%clk 0:00:27]} 20. Be3 {[%clk 0:00:30.9]} 20... Ba6 {[%clk 0:00:26.4]} 21. Nd5 {[%clk 0:00:28.9]} 21... Rac8 {[%clk 0:00:21.7]} 22. Rd1 {[%clk 0:00:28]} 22... f5 {[%clk 0:00:19.9]} 23. Ne7+ {[%clk 0:00:22.2]} 23... Kh8 {[%clk 0:00:18]} 24. Nxc8 {[%clk 0:00:22.2]} 24... Rxc8 {[%clk 0:00:16.7]} 25. exf5 {[%clk 0:00:21.1]} 25... Rf8 {[%clk 0:00:16]} 26. Bc5 {[%clk 0:00:16.6]} 26... Rxf5 {[%clk 0:00:14.6]} 27. Bb4 {[%clk 0:00:15.1]} 27... Rb5 {[%clk 0:00:12.6]} 28. Rb1 {[%clk 0:00:12]} 28... Rd5 {[%clk 0:00:11.3]} 29. h3 {[%clk 0:00:09.1]} 29... g6 {[%clk 0:00:07.7]} 30. Kh2 {[%clk 0:00:08.1]} 30... h5 {[%clk 0:00:07.3]} 31. Kg3 {[%clk 0:00:07.5]} 31... Kh7 {[%clk 0:00:06.1]} 32. Rhd1 {[%clk 0:00:05.6]} 32... Rg5+ {[%clk 0:00:02.7]} 33. Kh4 {[%clk 0:00:03.1]} 33... Kh6 {[%clk 0:00:00.8]} 34. Rb3 {[%clk 0:00:02.2]} 1-0

[Event "Live Chess"]
[Site "Chess.com"]
[Date "2010.12.15"]
[Round "-"]
[White "hipposcottimus"]
[Black "tim_de_la_grim"]
[Result "1-0"]
[CurrentPosition "7Q/r2pkp1p/pp1bp1p1/2p5/1qP5/2NP1B2/PP3PPP/1R3RK1 b - -"]
[Timezone "UTC"]
[ECO "B28"]
[ECOUrl "https://www.chess.com/openings/Sicilian-Defense-OKelly-Maroczy-Bind-Formation-3...Nc6"]
[UTCDate "2010.12.15"]
[UTCTime "23:33:52"]
[WhiteElo "1622"]
[BlackElo "1466"]
[TimeControl "60"]
[Termination "hipposcottimus won on time"]
[StartTime "23:33:52"]
[EndDate "2010.12.15"]
[EndTime "23:35:28"]
[Link "https://www.chess.com/game/live/77695834"]

1. e4 {[%clk 0:01:00]} 1... c5 {[%clk 0:01:00]} 2. Nf3 {[%clk 0:00:59.7]} 2... a6 {[%clk 0:00:59.3]} 3. c4 {[%clk 0:00:57.7]} 3... Nc6 {[%clk 0:00:58.5]} 4. d3 {[%clk 0:00:56.7]} 4... e6 {[%clk 0:00:58]} 5. Nc3 {[%clk 0:00:56.4]} 5... Qc7 {[%clk 0:00:57.5]} 6. e5 {[%clk 0:00:55.4]} 6... Nxe5 {[%clk 0:00:55.3]} 7. Bf4 {[%clk 0:00:55.1]} 7... Nxf3+ {[%clk 0:00:52.3]} 8. Qxf3 {[%clk 0:00:54.9]} 8... Qb6 {[%clk 0:00:51.3]} 9. Na4 {[%clk 0:00:48]} 9... Qa5+ {[%clk 0:00:48.8]} 10. Nc3 {[%clk 0:00:45.1]} 10... Ne7 {[%clk 0:00:46.2]} 11. Be2 {[%clk 0:00:43.1]} 11... Ng6 {[%clk 0:00:45.5]} 12. O-O {[%clk 0:00:40.1]} 12... Qb4 {[%clk 0:00:44.3]} 13. Rab1 {[%clk 0:00:32.4]} 13... Nxf4 {[%clk 0:00:40.2]} 14. Qxf4 {[%clk 0:00:32]} 14... b6 {[%clk 0:00:38.8]} 15. Bh5 {[%clk 0:00:30.9]} 15... g6 {[%clk 0:00:36.6]} 16. Bf3 {[%clk 0:00:29.2]} 16... Ra7 {[%clk 0:00:28.9]} 17. Qb8 {[%clk 0:00:28.8]} 17... Bd6 {[%clk 0:00:11.1]} 18. Qxc8+ {[%clk 0:00:24.4]} 18... Ke7 {[%clk 0:00:09.9]} 19. Qxh8 {[%clk 0:00:23.4]} 1-0

[Event "Live Chess"]
[Site "Chess.com"]
[Date "2010.12.15"]
[Round "-"]
[White "Snart"]
[Black "hipposcottimus"]
[Result "0-1"]
[CurrentPosition "1r4k1/3nbp1p/2p1p1pB/q2pP3/3P4/1p1B1P2/3NQP1P/5KR1 w - -"]
[Timezone "UTC"]
[ECO "D02"]
[ECOUrl "https://www.chess.com/openings/Queens-Pawn-Opening-Zukertort-Variation"]
[UTCDate "2010.12.15"]
[UTCTime "23:30:38"]
[WhiteElo "1462"]
[BlackElo "1617"]
[TimeControl "60"]
[Termination "hipposcottimus won on time"]
[StartTime "23:30:38"]
[EndDate "2010.12.15"]
[EndTime "23:32:32"]
[Link "https://www.chess.com/game/live/77695001"]

1. Nf3 {[%clk 0:01:00]} 1... d5 {[%clk 0:01:00]} 2. d4 {[%clk 0:00:58.3]} 2... Bg4 {[%clk 0:00:59.6]} 3. c4 {[%clk 0:00:56.2]} 3... Bxf3 {[%clk 0:00:57.6]} 4. gxf3 {[%clk 0:00:52.5]} 4... c6 {[%clk 0:00:57.3]} 5. e3 {[%clk 0:00:50.5]} 5... Nd7 {[%clk 0:00:56.3]} 6. c5 {[%clk 0:00:48.6]} 6... b6 {[%clk 0:00:54.9]} 7. b4 {[%clk 0:00:46.7]} 7... a5 {[%clk 0:00:51.5]} 8. Bb2 {[%clk 0:00:44.2]} 8... axb4 {[%clk 0:00:50.2]} 9. a3 {[%clk 0:00:42.8]} 9... bxc5 {[%clk 0:00:49.1]} 10. axb4 {[%clk 0:00:40.5]} 10... cxb4 {[%clk 0:00:47.9]} 11. Bd3 {[%clk 0:00:33.4]} 11... e6 {[%clk 0:00:45]} 12. Rxa8 {[%clk 0:00:31.5]} 12... Qxa8 {[%clk 0:00:43.3]} 13. Qe2 {[%clk 0:00:28.4]} 13... Qa5 {[%clk 0:00:41.1]} 14. Kf1 {[%clk 0:00:22.5]} 14... Be7 {[%clk 0:00:37.6]} 15. Bc1 {[%clk 0:00:15.6]} 15... Bf6 {[%clk 0:00:36.8]} 16. Bd2 {[%clk 0:00:14.4]} 16... Nh6 {[%clk 0:00:27.8]} 17. e4 {[%clk 0:00:10.3]} 17... O-O {[%clk 0:00:25.6]} 18. e5 {[%clk 0:00:08.4]} 18... Be7 {[%clk 0:00:19.7]} 19. Rg1 {[%clk 0:00:07.3]} 19... g6 {[%clk 0:00:17.9]} 20. Bxh6 {[%clk 0:00:04.9]} 20... Rb8 {[%clk 0:00:15.2]} 21. Nd2 {[%clk 0:00:01.8]} 21... b3 {[%clk 0:00:14.7]} 0-1

[Event "Live Chess"]
[Site "Chess.com"]
[Date "2010.12.15"]
[Round "-"]
[White "Angelchess"]
[Black "hipposcottimus"]
[Result "0-1"]
[CurrentPosition "K7/5k2/1q6/5p1p/8/P5P1/7P/8 w - -"]
[Timezone "UTC"]
[ECO "D02"]
[ECOUrl "https://www.chess.com/openings/Queens-Pawn-Opening-Zukertort-Variation"]
[UTCDate "2010.12.15"]
[UTCTime "23:27:31"]
[WhiteElo "1626"]
[BlackElo "1617"]
[TimeControl "60"]
[Termination "hipposcottimus won on time"]
[StartTime "23:27:31"]
[EndDate "2010.12.15"]
[EndTime "23:29:45"]
[Link "https://www.chess.com/game/live/77694299"]

1. Nf3 {[%clk 0:01:00]} 1... d5 {[%clk 0:01:00]} 2. d4 {[%clk 0:01:00]} 2... Bg4 {[%clk 0:00:59.4]} 3. c4 {[%clk 0:01:00]} 3... e5 {[%clk 0:00:58.5]} 4. Nc3 {[%clk 0:01:00]} 4... e4 {[%clk 0:00:58]} 5. Nd2 {[%clk 0:00:57.5]} 5... dxc4 {[%clk 0:00:55.7]} 6. Nxc4 {[%clk 0:00:56.4]} 6... Bb4 {[%clk 0:00:53.8]} 7. Qa4+ {[%clk 0:00:55]} 7... Nc6 {[%clk 0:00:51.3]} 8. e3 {[%clk 0:00:50.7]} 8... Bxc3+ {[%clk 0:00:45.7]} 9. bxc3 {[%clk 0:00:49.5]} 9... Nf6 {[%clk 0:00:44.4]} 10. Ba3 {[%clk 0:00:47.5]} 10... Bd7 {[%clk 0:00:36.8]} 11. Qc2 {[%clk 0:00:46.3]} 11... b5 {[%clk 0:00:34.9]} 12. Nd2 {[%clk 0:00:45]} 12... b4 {[%clk 0:00:33.8]} 13. Bxb4 {[%clk 0:00:43.5]} 13... Nxb4 {[%clk 0:00:33]} 14. cxb4 {[%clk 0:00:41.8]} 14... O-O {[%clk 0:00:32.7]} 15. Nxe4 {[%clk 0:00:40.7]} 15... Rb8 {[%clk 0:00:32.5]} 16. Nxf6+ {[%clk 0:00:38.4]} 16... Qxf6 {[%clk 0:00:32.2]} 17. a3 {[%clk 0:00:37.7]} 17... Bg4 {[%clk 0:00:30]} 18. f3 {[%clk 0:00:36]} 18... Bf5 {[%clk 0:00:29.6]} 19. Qd2 {[%clk 0:00:33.6]} 19... Rfe8 {[%clk 0:00:28.5]} 20. Kf2 {[%clk 0:00:25]} 20... Re7 {[%clk 0:00:28.2]} 21. Bd3 {[%clk 0:00:23.3]} 21... Rbe8 {[%clk 0:00:27.9]} 22. e4 {[%clk 0:00:21.9]} 22... Bg6 {[%clk 0:00:26.4]} 23. e5 {[%clk 0:00:20.8]} 23... Qh4+ {[%clk 0:00:24.9]} 24. g3 {[%clk 0:00:19]} 24... Qxd4+ {[%clk 0:00:24]} 25. Kg2 {[%clk 0:00:16.8]} 25... Bxd3 {[%clk 0:00:23.7]} 26. Rad1 {[%clk 0:00:14.9]} 26... Bf1+ {[%clk 0:00:20.1]} 27. Rhxf1 {[%clk 0:00:12.8]} 27... Qxe5 {[%clk 0:00:19.8]} 28. Rde1 {[%clk 0:00:11.3]} 28... Qxe1 {[%clk 0:00:17.4]} 29. Rxe1 {[%clk 0:00:10.1]} 29... Rxe1 {[%clk 0:00:17.2]} 30. Kf2 {[%clk 0:00:08.7]} 30... R1e2+ {[%clk 0:00:15.9]} 31. Qxe2 {[%clk 0:00:07.7]} 31... Rxe2+ {[%clk 0:00:15.6]} 32. Kxe2 {[%clk 0:00:07.4]} 32... f6 {[%clk 0:00:15.3]} 33. Kd3 {[%clk 0:00:07.4]} 33... Kf7 {[%clk 0:00:15]} 34. Kc4 {[%clk 0:00:07.4]} 34... g5 {[%clk 0:00:14.3]} 35. Kc5 {[%clk 0:00:07.4]} 35... h5 {[%clk 0:00:14]} 36. Kc6 {[%clk 0:00:07.4]} 36... f5 {[%clk 0:00:13.4]} 37. Kxc7 {[%clk 0:00:07.4]} 37... g4 {[%clk 0:00:13]} 38. Kb7 {[%clk 0:00:07.4]} 38... gxf3 {[%clk 0:00:12.1]} 39. Kxa7 {[%clk 0:00:06.4]} 39... f2 {[%clk 0:00:11.8]} 40. b5 {[%clk 0:00:06.4]} 40... f1=Q {[%clk 0:00:10.7]} 41. b6 {[%clk 0:00:06.4]} 41... Qg1 {[%clk 0:00:08.1]} 42. Ka8 {[%clk 0:00:00.4]} 42... Qxb6 {[%clk 0:00:06.9]} 0-1

[Event "Live Chess"]
[Site "Chess.com"]
[Date "2010.12.15"]
[Round "-"]
[White "hipposcottimus"]
[Black "Angelchess"]
[Result "0-1"]
[CurrentPosition "1k6/pbp4p/4Bp2/2b4q/8/1Q2p3/PPP4P/3r1K1R w - -"]
[Timezone "UTC"]
[ECO "C44"]
[ECOUrl "https://www.chess.com/openings/Kings-Pawn-Opening-Kings-Knight-Variation-2...Nc6"]
[UTCDate "2010.12.15"]
[UTCTime "23:25:58"]
[WhiteElo "1608"]
[BlackElo "1635"]
[TimeControl "60"]
[Termination "Angelchess won by checkmate"]
[StartTime "23:25:58"]
[EndDate "2010.12.15"]
[EndTime "23:27:15"]
[Link "https://www.chess.com/game/live/77693970"]

1. e4 {[%clk 0:01:00]} 1... Nc6 {[%clk 0:01:00]} 2. Nf3 {[%clk 0:00:59.6]} 2... e5 {[%clk 0:00:59.1]} 3. d4 {[%clk 0:00:59.3]} 3... f5 {[%clk 0:00:58.9]} 4. d5 {[%clk 0:00:58.2]} 4... fxe4 {[%clk 0:00:58.9]} 5. dxc6 {[%clk 0:00:57.1]} 5... exf3 {[%clk 0:00:58.2]} 6. cxb7 {[%clk 0:00:56.4]} 6... Bxb7 {[%clk 0:00:57]} 7. gxf3 {[%clk 0:00:53.5]} 7... Nf6 {[%clk 0:00:56.1]} 8. Be3 {[%clk 0:00:53.3]} 8... d5 {[%clk 0:00:54.3]} 9. Nc3 {[%clk 0:00:52.9]} 9... d4 {[%clk 0:00:53.1]} 10. Ne4 {[%clk 0:00:52.4]} 10... dxe3 {[%clk 0:00:51.9]} 11. Nxf6+ {[%clk 0:00:51]} 11... gxf6 {[%clk 0:00:49.6]} 12. fxe3 {[%clk 0:00:50.7]} 12... Bd6 {[%clk 0:00:45.1]} 13. Qe2 {[%clk 0:00:49.6]} 13... Qe7 {[%clk 0:00:43.3]} 14. Qd3 {[%clk 0:00:49.3]} 14... O-O-O {[%clk 0:00:42.1]} 15. O-O-O {[%clk 0:00:48.9]} 15... Bc5 {[%clk 0:00:38.4]} 16. Qb3 {[%clk 0:00:48.4]} 16... Rxd1+ {[%clk 0:00:36.5]} 17. Kxd1 {[%clk 0:00:47.6]} 17... Rd8+ {[%clk 0:00:35.7]} 18. Ke2 {[%clk 0:00:46.2]} 18... Qg7 {[%clk 0:00:31.5]} 19. Kf2 {[%clk 0:00:45.3]} 19... Qh6 {[%clk 0:00:30.3]} 20. f4 {[%clk 0:00:43.5]} 20... exf4 {[%clk 0:00:28.7]} 21. Ke2 {[%clk 0:00:43.3]} 21... fxe3 {[%clk 0:00:27]} 22. Bh3+ {[%clk 0:00:40.9]} 22... Kb8 {[%clk 0:00:24.8]} 23. Be6 {[%clk 0:00:38]} 23... Qh5+ {[%clk 0:00:22.6]} 24. Kf1 {[%clk 0:00:34.1]} 24... Rd1# {[%clk 0:00:21.2]} 0-1

[Event "Live Chess"]
[Site "Chess.com"]
[Date "2010.12.15"]
[Round "-"]
[White "Angelchess"]
[Black "hipposcottimus"]
[Result "1-0"]
[CurrentPosition "8/p5pp/Pn3k2/1P1r1B2/6P1/5P2/5PKP/4R3 b - -"]
[Timezone "UTC"]
[ECO "D02"]
[ECOUrl "https://www.chess.com/openings/Queens-Pawn-Opening-Zukertort-Variation"]
[UTCDate "2010.12.15"]
[UTCTime "23:23:30"]
[WhiteElo "1627"]
[BlackElo "1616"]
[TimeControl "60"]
[Termination "Angelchess won on time"]
[StartTime "23:23:30"]
[EndDate "2010.12.15"]
[EndTime "23:25:47"]
[Link "https://www.chess.com/game/live/77693363"]

1. Nf3 {[%clk 0:01:00]} 1... d5 {[%clk 0:01:00]} 2. d4 {[%clk 0:01:00]} 2... Bg4 {[%clk 0:00:59]} 3. c4 {[%clk 0:01:00]} 3... Bxf3 {[%clk 0:00:57.5]} 4. exf3 {[%clk 0:01:00]} 4... c6 {[%clk 0:00:53.5]} 5. Nc3 {[%clk 0:01:00]} 5... Nd7 {[%clk 0:00:51.6]} 6. a4 {[%clk 0:01:00]} 6... e6 {[%clk 0:00:49.6]} 7. Bd3 {[%clk 0:00:59.1]} 7... Ngf6 {[%clk 0:00:48.5]} 8. Qc2 {[%clk 0:00:58.3]} 8... Bb4 {[%clk 0:00:45.1]} 9. O-O {[%clk 0:00:56.5]} 9... O-O {[%clk 0:00:42.6]} 10. Bg5 {[%clk 0:00:54.9]} 10... e5 {[%clk 0:00:39.7]} 11. cxd5 {[%clk 0:00:48.7]} 11... exd4 {[%clk 0:00:34.7]} 12. dxc6 {[%clk 0:00:46.4]} 12... bxc6 {[%clk 0:00:24.4]} 13. Ne4 {[%clk 0:00:41.3]} 13... c5 {[%clk 0:00:19.6]} 14. Bxf6 {[%clk 0:00:40.4]} 14... Nxf6 {[%clk 0:00:17.9]} 15. Nxc5 {[%clk 0:00:37]} 15... Bxc5 {[%clk 0:00:15.8]} 16. Qxc5 {[%clk 0:00:35.4]} 16... Rc8 {[%clk 0:00:15.6]} 17. Qa3 {[%clk 0:00:33]} 17... Nd5 {[%clk 0:00:15.3]} 18. b4 {[%clk 0:00:29.1]} 18... Nb6 {[%clk 0:00:15]} 19. b5 {[%clk 0:00:27.8]} 19... Nd5 {[%clk 0:00:14.4]} 20. Rac1 {[%clk 0:00:26.5]} 20... Nb6 {[%clk 0:00:13.7]} 21. Rxc8 {[%clk 0:00:25.1]} 21... Qxc8 {[%clk 0:00:13.4]} 22. Rc1 {[%clk 0:00:24.6]} 22... Qd8 {[%clk 0:00:12.1]} 23. Qc5 {[%clk 0:00:23.6]} 23... Nd5 {[%clk 0:00:11.5]} 24. Qxd4 {[%clk 0:00:22.4]} 24... Ne7 {[%clk 0:00:10.7]} 25. Qxd8 {[%clk 0:00:21]} 25... Rxd8 {[%clk 0:00:10.5]} 26. Be4 {[%clk 0:00:20.3]} 26... f6 {[%clk 0:00:09.9]} 27. a5 {[%clk 0:00:18.1]} 27... Kf7 {[%clk 0:00:08.5]} 28. Bb1 {[%clk 0:00:15.4]} 28... Rb8 {[%clk 0:00:06.8]} 29. Ba2+ {[%clk 0:00:14.6]} 29... Kg6 {[%clk 0:00:03.9]} 30. Bc4 {[%clk 0:00:12.7]} 30... f5 {[%clk 0:00:03.6]} 31. a6 {[%clk 0:00:11.3]} 31... Nc8 {[%clk 0:00:02]} 32. Rb1 {[%clk 0:00:08.7]} 32... Nb6 {[%clk 0:00:01.7]} 33. Bd3 {[%clk 0:00:06.4]} 33... Rc8 {[%clk 0:00:01.4]} 34. g4 {[%clk 0:00:05.4]} 34... Rd8 {[%clk 0:00:01]} 35. Bxf5+ {[%clk 0:00:04.5]} 35... Kf6 {[%clk 0:00:00.6]} 36. Kg2 {[%clk 0:00:03.3]} 36... Rd5 {[%clk 0:00:00.1]} 37. Re1 {[%clk 0:00:02.1]} 1-0

[Event "Live Chess"]
[Site "Chess.com"]
[Date "2010.12.15"]
[Round "-"]
[White "hipposcottimus"]
[Black "dickensian"]
[Result "0-1"]
[CurrentPosition "r2q2k1/p2r1ppp/8/P2pP1R1/3Q4/8/2P3PP/R5K1 b - -"]
[Timezone "UTC"]
[ECO "C02"]
[ECOUrl "https://www.chess.com/openings/French-Defense-Advance-Nimzowitsch-System"]
[UTCDate "2010.12.15"]
[UTCTime "23:17:03"]
[WhiteElo "1438"]
[BlackElo "1465"]
[TimeControl "120+12"]
[Termination "dickensian won by resignation"]
[StartTime "23:17:03"]
[EndDate "2010.12.15"]
[EndTime "23:22:04"]
[Link "https://www.chess.com/game/live/77691745"]

1. e4 {[%clk 0:02:00]} 1... e6 {[%clk 0:02:00]} 2. Nf3 {[%clk 0:02:11.2]} 2... d5 {[%clk 0:02:10]} 3. e5 {[%clk 0:02:20.2]} 3... c5 {[%clk 0:02:18.7]} 4. d4 {[%clk 0:02:30]} 4... Nc6 {[%clk 0:02:28.4]} 5. Bb5 {[%clk 0:02:26.1]} 5... Qb6 {[%clk 0:02:37.6]} 6. Nc3 {[%clk 0:02:34.5]} 6... Ne7 {[%clk 0:02:28.5]} 7. Be3 {[%clk 0:02:41.7]} 7... Nf5 {[%clk 0:02:35.6]} 8. O-O {[%clk 0:02:37]} 8... cxd4 {[%clk 0:02:39.5]} 9. Bxd4 {[%clk 0:02:44.1]} 9... Nxd4 {[%clk 0:02:44.6]} 10. Nxd4 {[%clk 0:02:54.6]} 10... Bd7 {[%clk 0:02:53.5]} 11. Bxc6 {[%clk 0:03:02]} 11... bxc6 {[%clk 0:02:59.4]} 12. a4 {[%clk 0:03:03.2]} 12... Qxb2 {[%clk 0:03:08.3]} 13. Qd2 {[%clk 0:02:53.1]} 13... Qb8 {[%clk 0:02:58.5]} 14. f4 {[%clk 0:03:00.9]} 14... Bc5 {[%clk 0:03:01.4]} 15. a5 {[%clk 0:03:00.1]} 15... O-O {[%clk 0:03:03.3]} 16. Na4 {[%clk 0:03:09.9]} 16... Bxd4+ {[%clk 0:03:10.7]} 17. Qxd4 {[%clk 0:03:21.6]} 17... c5 {[%clk 0:03:15.7]} 18. Nxc5 {[%clk 0:03:32.2]} 18... Rd8 {[%clk 0:03:17.6]} 19. Nxd7 {[%clk 0:03:38.2]} 19... Rxd7 {[%clk 0:03:26.3]} 20. f5 {[%clk 0:03:49.9]} 20... exf5 {[%clk 0:03:35.5]} 21. Rxf5 {[%clk 0:03:59.9]} 21... Qd8 {[%clk 0:03:35.9]} 22. Rg5 {[%clk 0:04:10.2]} 0-1

[Event "Live Chess"]
[Site "Chess.com"]
[Date "2010.12.15"]
[Round "-"]
[White "vinkos5"]
[Black "hipposcottimus"]
[Result "1-0"]
[CurrentPosition "3qnr2/p5p1/5kQ1/4pB2/1B6/4P3/1P3PPP/5K2 b - -"]
[Timezone "UTC"]
[ECO "D02"]
[ECOUrl "https://www.chess.com/openings/Queens-Pawn-Opening-Zukertort-Variation-2...c6-3.e3"]
[UTCDate "2010.12.15"]
[UTCTime "21:46:05"]
[WhiteElo "1779"]
[BlackElo "1624"]
[TimeControl "60"]
[Termination "vinkos5 won by checkmate"]
[StartTime "21:46:05"]
[EndDate "2010.12.15"]
[EndTime "21:47:39"]
[Link "https://www.chess.com/game/live/77668072"]

1. d4 {[%clk 0:01:00]} 1... d5 {[%clk 0:01:00]} 2. Nf3 {[%clk 0:00:58.4]} 2... c6 {[%clk 0:00:59.6]} 3. e3 {[%clk 0:00:57.6]} 3... Nd7 {[%clk 0:00:59.3]} 4. c4 {[%clk 0:00:56.8]} 4... e6 {[%clk 0:00:59]} 5. cxd5 {[%clk 0:00:56.1]} 5... cxd5 {[%clk 0:00:58.2]} 6. a3 {[%clk 0:00:54.6]} 6... Ngf6 {[%clk 0:00:57.8]} 7. Nc3 {[%clk 0:00:54.1]} 7... b5 {[%clk 0:00:55.9]} 8. Bd3 {[%clk 0:00:53.6]} 8... b4 {[%clk 0:00:55.2]} 9. axb4 {[%clk 0:00:52.5]} 9... Bxb4 {[%clk 0:00:54.4]} 10. Bd2 {[%clk 0:00:52]} 10... O-O {[%clk 0:00:51]} 11. O-O {[%clk 0:00:49.9]} 11... Ne8 {[%clk 0:00:49]} 12. Bb1 {[%clk 0:00:49.4]} 12... f6 {[%clk 0:00:48.6]} 13. Qc2 {[%clk 0:00:48.5]} 13... e5 {[%clk 0:00:47.5]} 14. Qxh7+ {[%clk 0:00:47.1]} 14... Kf7 {[%clk 0:00:45.3]} 15. Bg6+ {[%clk 0:00:45.9]} 15... Ke7 {[%clk 0:00:45.1]} 16. Nxd5+ {[%clk 0:00:44.8]} 16... Kd6 {[%clk 0:00:41.3]} 17. Nxb4 {[%clk 0:00:41.7]} 17... Rb8 {[%clk 0:00:38.6]} 18. Ra6+ {[%clk 0:00:39.5]} 18... Bxa6 {[%clk 0:00:36]} 19. dxe5+ {[%clk 0:00:33.5]} 19... Nxe5 {[%clk 0:00:34.4]} 20. Nxe5 {[%clk 0:00:31.7]} 20... fxe5 {[%clk 0:00:34]} 21. Bc3 {[%clk 0:00:28.4]} 21... Bxf1 {[%clk 0:00:32.8]} 22. Kxf1 {[%clk 0:00:24.6]} 22... Rxb4 {[%clk 0:00:31.1]} 23. Bxb4+ {[%clk 0:00:21.3]} 23... Ke6 {[%clk 0:00:27.6]} 24. Bf5+ {[%clk 0:00:15]} 24... Kf6 {[%clk 0:00:26.4]} 25. Qg6# {[%clk 0:00:12.7]} 1-0